bitfinex-derivatives/quotes_BTCF0:USTF0_20251109
["timestamp","ask_amount","ask_price","bid_price","bid_amount"]
[1762655102223,0.75400278,102050.0,102040.0,0.05862]
[1762655103437,0.75400278,102050.0,102040.0,0.1566533]
[1762655107943,0.75400278,102050.0,102040.0,0.04551]
[1762655108841,0.75400278,102050.0,102040.0,0.1435433]
[1762655109437,0.73098025,102050.0,102040.0,0.1435433]
[1762655109637,0.75400208,102050.0,102040.0,0.04551]
[1762655110041,0.75400208,102050.0,102040.0,0.1435433]
[1762655111539,0.62710067,102050.0,102040.0,0.1566533]
[1762655111740,0.61543067,102050.0,102040.0,0.1566533]
[1762655111945,0.74233208,102050.0,102040.0,0.1566533]
[1762655112742,0.38153208,102050.0,102040.0,0.1566533]
[1762655112947,0.32850293,102050.0,102040.0,0.1566533]
[1762655113129,0.59127903,102050.0,102040.0,0.1566533]
[1762655113336,0.10357762,102050.0,102040.0,0.28355471]
[1762655114254,0.06826885,102050.0,102040.0,0.28355471]
[1762655114446,0.16629255,102050.0,102040.0,0.28355471]
[1762655114645,0.16629255,102050.0,102040.0,0.43185471]
[1762655115248,0.25463047,102050.0,102040.0,0.43185471]
[1762655115449,0.15660677,102050.0,102040.0,0.43185471]
[1762655115645,0.10357762,102050.0,102040.0,0.43185471]
[1762655116042,0.10357762,102050.0,102040.0,0.79265471]
[1762655116669,0.06826885,102050.0,102040.0,0.91955612]
[1762655116846,0.06826885,102050.0,102040.0,0.79265471]
[1762655117454,0.16629255,102050.0,102040.0,0.79265471]
[1762655117647,0.16629255,102050.0,102040.0,0.43185471]
[1762655117954,0.06826885,102050.0,102040.0,0.79265471]
[1762655120451,0.16629265,102050.0,102040.0,0.43185471]
[1762655120874,0.65399406,102050.0,102040.0,0.33382141]
[1762655121360,0.65399406,102050.0,102040.0,0.43185481]
[1762655121654,0.52709265,102050.0,102040.0,0.43185481]
[1762655121850,0.16629265,102050.0,102040.0,0.43385481]
[1762655122747,0.16629265,102050.0,102040.0,0.43485481]
[1762655125157,0.19517026,102050.0,102040.0,0.43485481]
[1762655125357,0.29319396,102050.0,102040.0,0.43485481]
[1762655126541,0.19517026,102050.0,102040.0,0.43485481]
[1762655127848,0.29319396,102050.0,102040.0,0.43485481]
[1762655128257,0.29319396,102050.0,102040.0,0.3079534]
[1762655128760,0.29319396,102050.0,102040.0,0.43485481]
[1762655131060,0.29319396,102050.0,102040.0,0.3079534]
[1762655131261,0.29319396,102050.0,102040.0,0.43485481]
[1762655132367,0.29319396,102050.0,102040.0,0.3079534]
[1762655132663,0.29319396,102050.0,102040.0,0.43485481]
[1762655133665,0.19517026,102050.0,102040.0,0.43485481]
[1762655134365,0.06826885,102050.0,102040.0,0.3079534]
[1762655135968,0.16629265,102050.0,102040.0,0.3079534]
[1762655156378,0.62334129,102050.0,102040.0,0.19681]
[1762655156572,0.71167921,102050.0,102040.0,0.1513]
[1762655157174,0.65865006,102050.0,102040.0,0.1513]
[1762655157575,0.65865006,102050.0,102040.0,0.1493]
[1762655157981,0.71167921,102050.0,102040.0,0.1493]
[1762655158279,0.65865006,102050.0,102040.0,0.1707]
[1762655158580,0.65865006,102050.0,102040.0,0.1697]
[1762655161574,0.65865006,102050.0,102040.0,0.0214]
[1762655162383,0.1407434,102040.0,102030.0,0.1426529]
[1762655162573,0.60914387,102040.0,102030.0,0.1426529]
[1762655162983,0.60914387,102040.0,102030.0,0.1565929]
[1762655164781,0.62081387,102040.0,102030.0,0.05855]
[1762655164980,0.140753,102030.0,102020.0,0.66455272]
[1762655165285,0.16377483,102030.0,102020.0,0.30375272]
[1762655166180,0.16377483,102030.0,102020.0,0.30475272]
[1762655166482,0.16377483,102030.0,102020.0,0.30675272]
[1762655167290,0.16377483,102030.0,102020.0,0.15845272]
[1762655169184,0.06573183,102030.0,102020.0,0.15845272]
[1762655169388,0.02302183,102030.0,102020.0,0.60383136]
[1762655169687,0.52532324,102040.0,102030.0,0.156593]
[1762655175892,0.52532324,102040.0,102030.0,0.157593]
[1762655176091,0.52532324,102040.0,102030.0,0.159593]
[1762655177189,0.16452324,102040.0,102030.0,0.520393]
[1762655178378,0.16452324,102040.0,102030.0,0.519393]
[1762655178580,0.16452324,102040.0,102030.0,0.517393]
[1762655181295,0.16452324,102040.0,102030.0,0.518393]
[1762655181794,0.16452324,102040.0,102030.0,0.520393]
[1762655184195,0.16452324,102040.0,102030.0,0.519393]
[1762655184588,0.16452324,102040.0,102030.0,0.517393]
[1762655185695,0.16455035,102040.0,102030.0,0.517393]
[1762655186593,0.24912899,102040.0,102030.0,0.517393]
[1762655187692,0.24912899,102040.0,102030.0,0.05955]
[1762655187995,0.28443776,102040.0,102030.0,0.05955]
[1762655188494,0.28443776,102040.0,102030.0,0.156593]
[1762655188689,0.28443776,102040.0,102030.0,0.04461]
[1762655188690,0.65690776,102040.0,102030.0,0.04461]
[1762655188903,0.65690776,102040.0,102030.0,0.142653]
[1762655192598,0.06651695,102040.0,102030.0,0.517303]
[1762655196406,0.19341352,102040.0,102030.0,0.517303]
[1762655199901,0.19341352,102040.0,102030.0,0.519303]
[1762655200199,0.19341352,102040.0,102030.0,0.520303]
[1762655202400,0.29144692,102040.0,102030.0,0.520303]
[1762655203305,0.29144692,102040.0,102030.0,0.518303]
[1762655203602,0.29144692,102040.0,102030.0,0.517303]
[1762655203790,0.65224692,102040.0,102030.0,0.05846]
[1762655203991,0.68755569,102040.0,102030.0,0.05846]
[1762655204196,0.69922569,102040.0,102030.0,0.05846]
[1762655204398,0.82612226,102040.0,102030.0,0.05846]
[1762655204605,0.82612226,102040.0,102030.0,0.156503]
[1762655205408,0.87915141,102040.0,102030.0,0.156503]
[1762655210207,0.87915141,102040.0,102030.0,0.04461]
[1762655210407,0.87915141,102040.0,102020.0,0.30391272]
[1762655210408,0.148173,102030.0,102020.0,0.30391272]
[1762655210709,0.69496991,102030.0,102020.0,0.30391272]
[1762655211711,0.69496991,102030.0,102020.0,0.30491272]
[1762655212102,0.69496991,102030.0,102020.0,0.30691272]
[1762655212308,0.65967652,102030.0,102020.0,0.30691272]
[1762655214316,0.65967652,102030.0,102020.0,0.15861272]
[1762655221211,0.65967652,102030.0,102020.0,0.14596272]
[1762655222524,0.65967652,102030.0,102020.0,0.15917272]
[1762655223019,0.65334652,102030.0,102020.0,0.15917272]
[1762655223705,0.06760695,102030.0,102020.0,0.64686929]
[1762655224014,0.16564995,102030.0,102020.0,0.64686929]
[1762655224311,0.06760695,102030.0,102020.0,0.64686929]
[1762655225012,0.16564995,102030.0,102020.0,0.51997272]
[1762655225616,0.29254652,102030.0,102020.0,0.51997272]
[1762655226514,0.29254652,102030.0,102020.0,0.64686929]
[1762655228720,0.29254652,102030.0,102020.0,0.51997272]
[1762655231307,0.29254652,102030.0,102020.0,0.06112702]
[1762655231507,0.65334652,102030.0,102020.0,0.06112702]
[1762655232423,0.65334652,102030.0,102020.0,0.15917962]
[1762655234724,0.29254652,102030.0,102020.0,0.15917962]
[1762655240326,0.32783991,102030.0,102020.0,0.15917962]
[1762655241516,0.33416991,102030.0,102020.0,0.04791702]
[1762655241717,0.1525922,102010.0,102000.0,0.40618]
[1762655241927,0.43019229,102010.0,102000.0,0.04538]
[1762655242123,0.43019229,102010.0,101990.0,0.05914]
[1762655242124,0.1527919,102000.0,101990.0,0.05914]
[1762655242426,0.43039199,102000.0,101990.0,0.04538]
[1762655242726,0.46568538,102000.0,101990.0,0.04538]
[1762655243125,0.1411314,101990.0,101980.0,0.05873702]
[1762655243326,0.29816492,101990.0,101980.0,0.05873702]
[1762655243626,0.29816492,101990.0,101980.0,0.04552702]
[1762655243627,0.29016492,101990.0,101980.0,0.04552702]
[1762655243824,0.41706149,101990.0,101980.0,0.04552702]
[1762655244013,0.65096492,101990.0,101980.0,0.02270702]
[1762655244220,0.65096492,101990.0,101980.0,0.04552702]
[1762655245126,0.52406835,101990.0,101980.0,0.04552702]
[1762655245329,0.65096492,101990.0,101980.0,0.04552702]
[1762655246530,0.65096492,101990.0,101980.0,0.05862702]
[1762655247317,0.65096492,101990.0,101980.0,0.04552702]
[1762655251639,0.65096492,101990.0,101980.0,0.14361802]
[1762655252037,0.65096492,101990.0,101980.0,0.04552702]
[1762655254036,0.62715797,101990.0,101980.0,0.02270702]
[1762655254339,0.65119422,101990.0,101980.0,0.00014702]
[1762655254524,0.77809079,101990.0,101980.0,0.00014702]
[1762655254930,0.65119422,101990.0,101980.0,0.14271802]
[1762655255349,0.65119422,101990.0,101980.0,0.15581802]
[1762655255534,0.65119422,101990.0,101980.0,0.02198702]
[1762655255834,0.65119422,101990.0,101980.0,0.00014702]
[1762655256443,0.60900433,101990.0,101980.0,0.00014702]
[1762655256934,0.69371101,101990.0,101980.0,0.00014702]
[1762655257236,0.69371101,101990.0,101970.0,0.00011994]
[1762655257237,0.154021,101980.0,101970.0,0.00011994]
[1762655257542,0.85583209,101980.0,101970.0,0.00011994]
[1762655258832,0.85683209,101980.0,101970.0,0.00011994]
[1762655259846,0.85683209,101980.0,101970.0,0.00111994]
[1762655267849,0.89212548,101980.0,101970.0,0.00111994]
[1762655270356,0.94515463,101980.0,101970.0,0.00111994]
[1762655271345,0.90986124,101980.0,101970.0,0.00111994]
[1762655278354,0.85683209,101980.0,101970.0,0.00111994]
[1762655278966,0.90970523,101980.0,101970.0,0.00111994]
[1762655279156,0.85683209,101980.0,101970.0,0.00111994]
[1762655280050,0.49603209,101980.0,101970.0,0.00111994]
[1762655280252,1.21763209,101980.0,101970.0,0.00111994]
[1762655280751,1.55483209,101980.0,101970.0,0.00111994]
[1762655281050,1.62538198,101980.0,101970.0,0.00111994]
[1762655286559,0.1415607,101970.0,101960.0,0.00014702]
[1762655286759,0.7767202,101970.0,101960.0,0.00014702]
[1762655286966,0.83899866,101970.0,101960.0,0.00014702]
[1762655287363,0.83899866,101970.0,101960.0,0.04647702]
[1762655287562,0.72630072,101970.0,101960.0,0.05966702]
[1762655287758,0.61469683,101970.0,101960.0,0.15777732]
[1762655288066,0.61469683,101970.0,101960.0,0.15877732]
[1762655288967,0.61469683,101970.0,101960.0,0.16077732]
[1762655290667,0.25389683,101970.0,101960.0,0.16077732]
[1762655290860,0.33860351,101970.0,101960.0,0.06266702]
[1762655291061,0.33860351,101970.0,101960.0,0.16077732]
[1762655291972,0.69940351,101970.0,101960.0,0.06266702]
[1762655292764,0.71107351,101970.0,101960.0,0.04947702]
[1762655295471,0.67579226,101970.0,101960.0,0.04947702]
[1762655295775,0.82255503,101970.0,101960.0,0.00314702]
[1762655296573,0.82255503,101970.0,101960.0,0.04947702]
[1762655296874,0.81088503,101970.0,101960.0,0.06266702]
[1762655297672,0.82255503,101970.0,101960.0,0.16077732]
[1762655297873,0.81088503,101970.0,101960.0,0.06266702]
[1762655298372,0.84616847,101970.0,101960.0,0.06266702]
[1762655300759,0.84616847,101970.0,101960.0,0.16077732]
[1762655301866,0.16569695,101970.0,101960.0,0.52157732]
[1762655302067,0.20098039,101970.0,101960.0,0.52157732]
[1762655305371,0.16569695,101970.0,101960.0,0.52157732]
[1762655307371,0.16577601,101970.0,101960.0,0.52157732]
[1762655307573,0.06767531,101970.0,101960.0,0.52157732]
[1762655308580,0.16577601,101970.0,101960.0,0.52157732]
[1762655310580,0.06767531,101970.0,101960.0,0.52157732]
[1762655311765,0.04594531,101970.0,101960.0,0.606284]
[1762655311970,0.14404601,101970.0,101960.0,0.606284]
[1762655312175,0.14404601,101970.0,101960.0,0.52157732]
[1762655312582,0.04594531,101970.0,101960.0,0.52157732]
[1762655312971,0.02421531,101970.0,101960.0,0.52157732]
[1762655316376,0.02421531,101970.0,101960.0,0.606284]
[1762655318185,0.02421531,101970.0,101960.0,0.245484]
[1762655318385,0.02421531,101970.0,101960.0,0.6486251]
[1762655319478,0.02421531,101970.0,101960.0,0.77567288]
[1762655319684,0.02421531,101970.0,101960.0,0.6486251]
[1762655320287,0.02421531,101970.0,101960.0,0.7969251]
[1762655332809,0.12231601,101970.0,101960.0,0.7969251]
[1762655333396,0.1428099,101950.0,101940.0,0.0579]
[1762655333592,0.78110794,101950.0,101940.0,0.0579]
[1762655333897,1.32376882,101950.0,101940.0,0.0579]
[1762655334197,1.19672104,101950.0,101940.0,0.0579]
[1762655334698,1.19672104,101950.0,101940.0,0.0599]
[1762655334891,1.19672104,101950.0,101940.0,0.0619]
[1762655335399,1.1614376,101950.0,101940.0,0.0619]
[1762655336396,1.1687176,101950.0,101940.0,0.0619]
[1762655336596,1.1614376,101950.0,101940.0,0.0619]
[1762655336799,1.28848538,101950.0,101940.0,0.0619]
[1762655339401,1.29576538,101950.0,101940.0,0.0488]
[1762655340301,1.29576538,101950.0,101940.0,0.004]
[1762655340607,1.33104882,101950.0,101940.0,0.004]
[1762655341101,1.29576538,101950.0,101940.0,0.004]
[1762655341299,1.29576538,101950.0,101940.0,0.02569]
[1762655341501,1.29576538,101950.0,101940.0,0.004]
[1762655345088,1.29576538,101950.0,101940.0,0.02569]
[1762655346202,1.29576538,101950.0,101940.0,0.004]
[1762655352304,1.29576538,101950.0,101940.0,0.02569]
[1762655352606,1.29576538,101950.0,101940.0,0.04729]
[1762655355620,1.2723629,101950.0,101940.0,0.04729]
[1762655355802,0.88833325,101950.0,101940.0,0.28636738]
[1762655356111,1.01538103,101950.0,101940.0,0.1593196]
[1762655356312,0.06861335,101950.0,101940.0,0.1593196]
[1762655356707,0.02392335,101950.0,101940.0,0.28636738]
[1762655357014,9.714e-05,101950.0,101940.0,0.64716738]
[1762655357912,9.714e-05,101950.0,101940.0,0.79546738]
[1762655358417,9.714e-05,101950.0,101940.0,1.01945516]
[1762655359003,9.714e-05,101950.0,101940.0,0.89240738]
[1762655359205,9.714e-05,101950.0,101940.0,0.64716738]
[1762655359512,9.714e-05,101950.0,101940.0,0.89240738]
[1762655359816,9.714e-05,101950.0,101940.0,0.64716738]
[1762655360016,9.714e-05,101950.0,101940.0,0.89240738]
[1762655361408,9.714e-05,101950.0,101940.0,1.01945516]
[1762655362106,9.714e-05,101950.0,101940.0,0.7653596]
[1762655362306,9.714e-05,101950.0,101940.0,0.77421516]
[1762655362517,9.714e-05,101950.0,101940.0,1.01945516]
[1762655362818,0.00014702,101960.0,101950.0,0.28235768]
[1762655363017,0.02402363,101960.0,101950.0,0.64315768]
[1762655363322,0.00014702,101960.0,101950.0,0.88835768]
[1762655364119,0.00014702,101960.0,101950.0,0.88935768]
[1762655364718,0.00014702,101960.0,101950.0,0.64415768]
[1762655364906,0.00014702,101960.0,101950.0,0.88935768]
[1762655365110,0.00014702,101960.0,101950.0,0.64415768]
[1762655365419,0.00014702,101960.0,101950.0,0.88935768]
[1762655366220,0.00014702,101960.0,101950.0,0.64415768]
[1762655366522,0.00014702,101960.0,101950.0,0.96800016]
[1762655366722,0.00014702,101960.0,101950.0,0.72280016]
[1762655367019,0.00014702,101960.0,101950.0,0.96800016]
[1762655367613,0.00014702,101960.0,101950.0,0.72280016]
[1762655367811,0.00014702,101960.0,101950.0,0.96800016]
[1762655369417,0.00014702,101960.0,101950.0,0.72280016]
[1762655369622,0.00014702,101960.0,101950.0,0.87110016]
[1762655370011,0.00014702,101960.0,101950.0,1.11630016]
[1762655370914,0.17088778,101980.0,101970.0,0.1560107]
[1762655371114,0.19472541,101980.0,101970.0,0.1560107]
[1762655372225,0.17488778,101980.0,101970.0,0.1560107]
[1762655372522,0.19861716,101980.0,101970.0,0.1560107]
[1762655374916,0.19861716,101980.0,101970.0,0.5168107]
[1762655376226,0.17691716,101980.0,101970.0,0.5168107]
[1762655376423,0.19861716,101980.0,101970.0,0.5168107]
[1762655378321,0.07156938,101980.0,101970.0,0.5168107]
[1762655379923,0.2661249,101980.0,101970.0,0.02202]
[1762655380128,0.1546007,101970.0,101960.0,0.20635702]
[1762655380321,0.26302874,101970.0,101960.0,0.19245702]
[1762655381223,0.62382874,101970.0,101960.0,0.19245702]
[1762655381425,0.62482874,101970.0,101960.0,0.14226732]
[1762655384128,0.62482874,101970.0,101960.0,0.15616732]
[1762655384723,0.62482874,101970.0,101960.0,0.05805702]
[1762655386126,0.66011218,101970.0,101960.0,0.05805702]
[1762655389131,0.66011218,101970.0,101960.0,0.15616732]
[1762655393532,0.29931218,101970.0,101960.0,0.15616732]
[1762655393829,0.66011218,101970.0,101960.0,0.14226732]
[1762655395136,0.66011218,101970.0,101960.0,0.04415702]
[1762655395336,0.71303081,101970.0,101960.0,0.04415702]
[1762655395520,0.71303081,101970.0,101960.0,0.14226732]
[1762655395725,0.71303081,101970.0,101960.0,0.04415702]
[1762655397637,0.71308513,101970.0,101960.0,0.04415702]
[1762655400830,0.71308513,101970.0,101960.0,0.02216702]
[1762655401034,0.79777965,101970.0,101960.0,0.00014702]
[1762655401234,0.1509303,101960.0,101950.0,0.1483]
[1762655401447,0.1407395,101940.0,101930.0,0.6659222]
[1762655401744,0.26099186,101940.0,101930.0,0.1568222]
[1762655402743,0.25999186,101940.0,101930.0,0.1568222]
[1762655402942,0.26025135,101940.0,101930.0,0.1568222]
[1762655403637,0.17555683,101940.0,101930.0,0.1638222]
[1762655403838,0.26025135,101940.0,101930.0,0.1638222]
[1762655408949,0.26025135,101940.0,101930.0,0.1499222]
[1762655409850,0.26025135,101940.0,101930.0,0.05179]
[1762655410943,0.62105135,101940.0,101930.0,0.05179]
[1762655413548,0.62105135,101940.0,101930.0,0.1499292]
[1762655413743,0.62105135,101940.0,101930.0,0.05179]
[1762655419453,0.70574587,101940.0,101930.0,0.05179]
[1762655419660,0.70574587,101940.0,101930.0,0.007]
[1762655421757,0.71565757,101940.0,101930.0,0.007]
[1762655425350,0.86254933,101940.0,101930.0,0.007]
[1762655426060,0.86251664,101940.0,101930.0,0.007]
[1762655426361,0.89770218,101940.0,101930.0,0.007]
[1762655426554,0.86251664,101940.0,101930.0,0.007]
[1762655426777,0.89770218,101940.0,101930.0,0.007]
[1762655427047,0.95062081,101940.0,101930.0,0.007]
[1762655427453,0.1553891,101930.0,101920.0,0.00014702]
[1762655427654,0.62489826,101930.0,101920.0,0.00014702]
[1762655428158,0.62489826,101930.0,101920.0,0.02230702]
[1762655428366,0.62489826,101930.0,101920.0,0.00014702]
[1762655428762,0.62489826,101930.0,101920.0,0.00114702]
[1762655429549,0.62489826,101930.0,101920.0,0.02330702]
[1762655429754,0.62489826,101930.0,101920.0,0.00114702]
[1762655432565,0.6600838,101930.0,101920.0,0.00114702]
[1762655432760,0.6600838,101930.0,101920.0,0.02330702]
[1762655433670,0.6600838,101930.0,101920.0,0.04516702]
[1762655433862,0.6600838,101930.0,101920.0,0.00114702]
[1762655434762,0.6600838,101930.0,101920.0,0.04516702]
[1762655434966,0.62489826,101930.0,101920.0,0.04516702]
[1762655436069,0.62489826,101930.0,101920.0,0.00114702]
[1762655436970,0.6600838,101930.0,101920.0,0.00114702]
[1762655438374,0.82982252,101930.0,101920.0,0.00114702]
[1762655440575,0.9763896,101930.0,101920.0,0.00114702]
[1762655441376,0.9763896,101930.0,101920.0,0.02330702]
[1762655442475,0.9763896,101930.0,101920.0,0.00114702]
[1762655442676,1.22155912,101930.0,101920.0,0.00114702]
[1762655446974,0.86075912,101930.0,101920.0,0.00114702]
[1762655447183,1.22155912,101930.0,101920.0,0.00114702]
[1762655449285,1.02004451,101930.0,101920.0,0.02292702]
[1762655449579,1.27447775,101930.0,101920.0,0.00114702]
[1762655450283,1.22155912,101930.0,101920.0,0.00114702]
[1762655450672,1.27447775,101930.0,101920.0,0.00114702]
[1762655450883,0.1514888,101920.0,101910.0,0.04759745]
[1762655451073,0.79073668,101920.0,101910.0,0.09213745]
[1762655451982,0.79073668,101920.0,101910.0,0.04759745]
[1762655452571,0.79073668,101920.0,101910.0,0.06937745]
[1762655452771,0.79073668,101920.0,101910.0,0.07037745]
[1762655453496,0.79073668,101920.0,101910.0,0.07237745]
[1762655453682,0.79073668,101920.0,101910.0,0.05059745]
[1762655453877,0.79073668,101920.0,101910.0,0.07237745]
[1762655455586,0.79073668,101920.0,101910.0,0.09513745]
[1762655458183,0.82592222,101920.0,101910.0,0.09513745]
[1762655459382,0.82592222,101920.0,101910.0,0.04765101]
[1762655460586,0.82592222,101920.0,101910.0,0.04634101]
[1762655461183,0.82592222,101920.0,101910.0,0.02489101]
[1762655462691,0.82592222,101920.0,101910.0,0.04634101]
[1762655464988,0.46512222,101920.0,101910.0,0.04634101]
[1762655465179,0.57148898,101920.0,101910.0,0.04634101]
[1762655465490,0.16644344,101920.0,101910.0,0.64629603]
[1762655465686,0.04533464,101920.0,101910.0,0.64629603]
[1762655465883,0.02401464,101920.0,101910.0,0.64629603]
[1762655466078,0.41263774,101930.0,101920.0,0.05662]
[1762655466278,0.41263774,101930.0,101920.0,0.54463662]
[1762655466596,0.53985436,101930.0,101920.0,0.64278542]
[1762655466782,0.41263774,101930.0,101920.0,0.64278542]
[1762655466987,0.41263774,101930.0,101920.0,0.5155688]
[1762655467380,0.41363774,101930.0,101920.0,0.5155688]
[1762655467686,0.41363774,101930.0,101920.0,0.64278542]
[1762655467890,0.39073774,101930.0,101920.0,0.64378542]
[1762655468092,0.41363774,101930.0,101920.0,0.64378542]
[1762655468289,0.41363774,101930.0,101920.0,0.5165688]
[1762655469385,0.54085436,101930.0,101920.0,0.5165688]
[1762655471696,0.27035864,101930.0,101920.0,0.79208542]
[1762655472392,0.24631654,101930.0,101920.0,0.79208542]
[1762655472788,0.34445624,101930.0,101920.0,0.6648688]
[1762655473000,0.36846661,101930.0,101920.0,0.79208542]
[1762655473300,0.34445624,101930.0,101920.0,0.79208542]
[1762655473491,0.36669624,101930.0,101920.0,0.79208542]
[1762655473900,0.39070113,101930.0,101920.0,0.79208542]
[1762655474199,0.36669624,101930.0,101920.0,0.79208542]
[1762655474790,0.24631654,101930.0,101920.0,0.79208542]
[1762655476892,0.24631654,101930.0,101920.0,1.21131472]
[1762655477091,0.24631654,101930.0,101920.0,0.96603472]
[1762655477596,0.24631654,101930.0,101920.0,1.21131472]
[1762655478196,0.24631654,101930.0,101920.0,1.0840981]
[1762655478896,0.24631654,101930.0,101920.0,1.21131472]
[1762655479095,0.24631654,101930.0,101920.0,0.96603472]
[1762655479495,0.24631654,101930.0,101920.0,1.0840981]
[1762655480295,0.24631654,101930.0,101920.0,0.8388181]
[1762655480495,0.24631654,101930.0,101920.0,1.0840981]
[1762655481797,0.24631654,101930.0,101920.0,0.8388181]
[1762655481999,0.24631654,101930.0,101920.0,1.0840981]
[1762655482209,0.26855654,101930.0,101920.0,0.95688148]
[1762655482398,0.26855654,101930.0,101920.0,1.0840981]
[1762655483202,0.29145654,101930.0,101920.0,0.8388181]
[1762655483403,0.29145654,101930.0,101920.0,1.0840981]
[1762655483602,0.51681286,101930.0,101920.0,0.8388181]
[1762655483790,0.29145654,101930.0,101920.0,0.8388181]
[1762655484499,0.38959624,101930.0,101920.0,0.8388181]
[1762655484690,0.29145654,101930.0,101920.0,0.8388181]
[1762655484892,0.38959634,101930.0,101920.0,0.8388181]
[1762655485205,0.51681296,101930.0,101920.0,0.8388181]
[1762655485806,0.38959634,101930.0,101920.0,0.8388181]
[1762655486197,0.51681296,101930.0,101920.0,0.8388181]
[1762655486403,0.38959634,101930.0,101920.0,0.71160148]
[1762655486708,0.51681296,101930.0,101920.0,0.71160148]
[1762655487004,0.51681296,101930.0,101920.0,0.6648688]
[1762655488638,0.51681296,101930.0,101920.0,0.3040688]
[1762655489008,0.51681296,101930.0,101920.0,0.3040694]
[1762655489202,0.88667296,101930.0,101920.0,0.3040694]
[1762655489406,0.91067044,101930.0,101920.0,0.3040694]
[1762655489607,0.91067044,101930.0,101920.0,0.20592]
[1762655489802,0.91067044,101930.0,101920.0,0.19214]
[1762655490206,1.03788706,101930.0,101920.0,0.1493]
[1762655490503,1.0730726,101930.0,101920.0,0.001]
[1762655490808,1.6730726,101930.0,101920.0,0.001]
[1762655491313,0.1562594,101920.0,101910.0,0.00011101]
[1762655491515,0.79549012,101920.0,101910.0,0.00011101]
[1762655492014,0.79549012,101920.0,101910.0,0.02130101]
[1762655492313,0.79549012,101920.0,101910.0,0.04246101]
[1762655492515,0.79549012,101920.0,101910.0,0.04546101]
[1762655494412,0.79549012,101920.0,101910.0,0.00311101]
[1762655494618,0.79549012,101920.0,101910.0,0.02430101]
[1762655494919,0.79549012,101920.0,101910.0,0.00311101]
[1762655495117,0.79549012,101920.0,101910.0,0.00111101]
[1762655495416,0.79549012,101920.0,101910.0,0.04346101]
[1762655495417,0.79649012,101920.0,101910.0,0.04346101]
[1762655495716,0.79949012,101920.0,101910.0,0.04346101]
[1762655496019,0.43869012,101920.0,101910.0,0.14162001]
[1762655498825,0.43869012,101920.0,101910.0,0.15535001]
[1762655499630,0.43869012,101920.0,101910.0,0.05719101]
[1762655499843,0.43869012,101920.0,101910.0,0.15535001]
[1762655500325,0.26906576,101920.0,101910.0,0.15535001]
[1762655500728,0.26906576,101920.0,101910.0,0.05719101]
[1762655501134,0.26906576,101920.0,101910.0,0.04346101]
[1762655501735,0.62986576,101920.0,101910.0,0.04346101]
[1762655502131,0.26906576,101920.0,101910.0,0.15535001]
[1762655502838,0.62986576,101920.0,101910.0,0.15535001]
[1762655504232,0.62986576,101920.0,101910.0,0.05719101]
[1762655504839,0.54505688,101920.0,101910.0,0.15535001]
[1762655505026,0.62986576,101920.0,101910.0,0.04346101]
[1762655505226,0.71467464,101920.0,101910.0,0.04346101]
[1762655506730,0.71467464,101920.0,101910.0,0.02230101]
[1762655507237,0.71467464,101920.0,101910.0,0.00111101]
[1762655507426,0.71467464,101920.0,101910.0,0.02406101]
[1762655507736,0.71467464,101920.0,101910.0,0.00111101]
[1762655511244,0.41092748,101920.0,101910.0,0.06027101]
[1762655511442,0.17106678,101920.0,101910.0,0.15843001]
[1762655511925,0.25587566,101920.0,101910.0,0.15843001]
[1762655515233,0.17106678,101920.0,101910.0,0.15843001]
[1762655515429,0.25587566,101920.0,101910.0,0.15843001]
[1762655515850,0.17106678,101920.0,101910.0,0.15843001]
[1762655516034,0.25587566,101920.0,101910.0,0.15843001]
[1762655516235,0.25587566,101920.0,101910.0,0.06027101]
[1762655516434,0.25587566,101920.0,101910.0,0.15843001]
[1762655518846,0.2910612,101920.0,101910.0,0.15843001]
[1762655519047,0.6518612,101920.0,101910.0,0.15843001]
[1762655519344,0.2910612,101920.0,101910.0,0.15843001]
[1762655520350,0.17106678,101920.0,101910.0,0.15843001]
[1762655520539,0.25587566,101920.0,101910.0,0.15843001]
[1762655524860,0.2910612,101920.0,101910.0,0.15843001]
[1762655525248,0.07291748,101920.0,101910.0,0.15843001]
[1762655525450,0.15772636,101920.0,101910.0,0.15843001]
[1762655525951,0.25587566,101920.0,101910.0,0.15843001]
[1762655528358,0.2910612,101920.0,101910.0,0.15843001]
[1762655530956,0.2910612,101920.0,101910.0,0.51923001]
[1762655531759,0.15772636,101920.0,101910.0,0.51923001]
[1762655531969,0.25587566,101920.0,101910.0,0.51923001]
[1762655532664,0.25587566,101920.0,101910.0,0.15843001]
[1762655533458,0.2910612,101920.0,101910.0,0.15843001]
[1762655533663,0.6518612,101920.0,101910.0,0.15843001]
[1762655536057,0.2910612,101920.0,101910.0,0.15843001]
[1762655540270,0.20625232,101920.0,101910.0,0.15843001]
[1762655540463,0.2910612,101920.0,101910.0,0.15843001]
[1762655542258,0.25587566,101920.0,101910.0,0.15843001]
[1762655543062,0.17106678,101920.0,101910.0,0.15843001]
[1762655543272,0.20625232,101920.0,101910.0,0.15843001]
[1762655543572,0.17106678,101920.0,101910.0,0.15843001]
[1762655544475,0.20625232,101920.0,101910.0,0.15843001]
[1762655545064,0.2910612,101920.0,101910.0,0.15843001]
[1762655547769,0.1929119,101920.0,101910.0,0.15843001]
[1762655548082,0.02799748,101920.0,101910.0,0.84935889]
[1762655548282,0.02799748,101920.0,101910.0,1.21015889]
[1762655548681,0.02799748,101920.0,101910.0,0.96483889]
[1762655548882,0.02799748,101920.0,101910.0,1.21015889]
[1762655549083,0.02799748,101920.0,101910.0,0.96483889]
[1762655549285,0.02799748,101920.0,101910.0,0.88003001]
[1762655549478,0.02799748,101920.0,101910.0,1.21015889]
[1762655549980,0.02799748,101920.0,101910.0,1.12535001]
[1762655550182,0.02799748,101920.0,101910.0,0.88003001]
[1762655550183,0.004,101920.0,101910.0,0.88003001]
[1762655550383,0.004,101920.0,101910.0,1.12535001]
[1762655550584,0.004,101920.0,101910.0,1.21015889]
[1762655551785,0.004,101920.0,101910.0,0.96483889]
[1762655551986,0.004,101920.0,101910.0,1.21015889]
[1762655553685,0.004,101920.0,101910.0,0.96483889]
[1762655553885,0.004,101920.0,101910.0,1.21015889]
[1762655554087,0.004,101920.0,101910.0,0.96483889]
[1762655554385,0.004,101920.0,101910.0,1.21015889]
[1762655555788,0.004,101920.0,101910.0,0.96483889]
[1762655555994,0.02403,101920.0,101910.0,1.21115889]
[1762655556180,0.02103,101920.0,101910.0,1.21015889]
[1762655556381,0.02103,101920.0,101910.0,0.96483889]
[1762655556985,0.02103,101920.0,101910.0,0.88003001]
[1762655557288,0.02103,101920.0,101910.0,1.02833001]
[1762655557491,0.02103,101920.0,101910.0,1.01038596]
[1762655558388,0.11927035,101920.0,101910.0,1.01038596]
[1762655558691,0.14132035,101920.0,101910.0,1.01038596]
[1762655560488,0.2684996,101920.0,101910.0,1.13756521]
[1762655561792,0.2684996,101920.0,101910.0,1.01038596]
[1762655562685,0.1703502,101920.0,101910.0,1.01038596]
[1762655563189,0.1703502,101920.0,101910.0,1.13756521]
[1762655563590,0.04317095,101920.0,101910.0,1.13756521]